Cogmind - Beta 9.6 @@@ ROGUE MODE // 2020.08.29 @ 20:55:04 Player: Airus Result: Destroyed by Y-45 Defender with Beam Rifle Performance ------------- Evolutions (2) 1000 Regions Visited (4) 800 Robots Destroyed (11) 55 Value Destroyed (240) 240 Prototype IDs (0) 0 Alien Tech Used (0) 0 Bonus (0) 0 TOTAL SCORE: 2095 Bonus ------- None Cogmind --------- Core Integrity 0/550 Matter 264/300 Energy 100/100 System Corruption 7% Temperature Cool (9) Movement Core (50) Location -8/Materials Parts ------- > --- POWER (1) -------- (None) > --- PROPULSION (2) --- (None) > --- UTILITY (6) ------ Advanced Visual Processing Unit Signal Interpreter > --- WEAPON (2) ------- (None) > --- INVENTORY (4) ---- Visual Processing Unit Medium Armor Plating Missile Launcher Great Maul Peak State ------------ > --- POWER ------------ Light Nuclear Core > --- PROPULSION ------- (None) > --- UTILITY ---------- Advanced Weight Redist. System Advanced Visual Processing Unit Signal Interpreter Melee Analysis Suite > --- WEAPON ----------- Grenade Launcher Missile Launcher > --- INVENTORY -------- Visual Processing Unit Medium Armor Plating [Rating: 17] Favorites ----------- Power Light Nuclear Core Power Core Light Nuclear Core Propulsion Improved Hover Unit Hover Unit Improved Hover Unit Flight Unit VTOL Module Utility Signal Interpreter Device Advanced Weight Redist. System Processor Signal Interpreter Protection Core Shielding Weapon Heavy Hammer Launcher Missile Launcher Impact Weapon Heavy Hammer Build | -11 -10 -10 -9 -8 ------- Run | Scr Mat Min Mat Mat Slots Evolved 4 | . . . 2 2 Power . | . . . . . Propulsion . | . . . . . Utility 4 | . . . 2 2 Weapon . | . . . . . Parts Attached 19 | . 4 4 4 7 Power 1 | . . . . 1 Engine . | . . . . . Core 1 | . . . . 1 Reactor . | . . . . . Propulsion 5 | . 2 2 . 1 Treads . | . . . . . Leg . | . . . . . Wheel . | . . . . . Hover 4 | . 2 2 . . Flight 1 | . . . . 1 Utility 7 | . 2 1 2 2 Device 1 | . . . . 1 Storage . | . . . . . Processor 4 | . 2 . 1 1 Hackware . | . . . . . Protection 2 | . . 1 1 . Artifact . | . . . . . Weapon 6 | . . 1 2 3 Energy Gun . | . . . . . Energy Cannon . | . . . . . Ballistic Gun . | . . . . . Ballistic Cannon . | . . . . . Launcher 4 | . . 1 1 2 Special Weapon . | . . . . . Impact Weapon 2 | . . . 1 1 Slashing Weapon . | . . . . . Piercing Weapon . | . . . . . Special Melee Weapon . | . . . . . Unidentified Prototypes . | . . . . . Parts Lost 10 | . 2 . 2 6 Power 1 | . . . . 1 Propulsion 5 | . 2 . 2 1 Utility 2 | . . . . 2 Weapon 2 | . . . . 2 Highest Loss Streak 5 | . 2 . 2 5 Average Slot Usage (%) 41 | . 30 55 44 37 Hover 9 | . 8 25 13 . Device 1 | . . . . 4 Processor 21 | . 21 15 20 25 Protection 4 | . . 12 6 . Impact Weapon 3 | . . . 4 5 Naked Turns 5 | . 5 . . . Heaviest Build 7 | . . 7 3 5 Greatest Support 12 | 3 8 3 3 12 Greatest Overweight (x) 2 | . . 2 . 1 Average Overweight (x) . | . . . . . Largest Inventory Capacity 4 | 4 4 4 4 4 Average Capacity 4 | 4 4 4 4 4 Most Carried 4 | . 4 4 4 4 Average Carried 3 | . 1 3 3 3 Final Capacity 4 | 4 4 4 4 4 Final Carried 4 | . 4 4 4 4 Class Distribution -------------------- 100% | Mutant Dominant Class ---------------- Mutant | -10/Materials Mutant | -10/Mines Mutant | -9/Materials Mutant | -8/Materials Resources | -11 -10 -10 -9 -8 ----------- Run | Scr Mat Min Mat Mat Matter Collected 380 | 186 . 20 . 174 Remotely . | . . . . . Salvage Created 205 | . . 33 23 149 Parts 12 | . . 2 6 4 Haulers Intercepted . | . . . . . Recyclers Shooed . | . . . . . Parts Field Recycled . | . . . . . Retrieved Matter . | . . . . . Parts Self-Destructed . | . . . . . Prevented . | . . . . . Kills | -11 -10 -10 -9 -8 ------- Run | Scr Mat Min Mat Mat Combat Hostiles Destroyed 7 | . . 1 3 3 AOE 6 | . . 1 3 2 Classes Destroyed 4 | . . 1 2 1 Worker 3 | . . . . 3 Watcher 1 | . . . 1 . Swarmer 3 | . . . 3 . Grunt 4 | . . 1 . 3 Best Kill Streak 4 | . . 1 4 4 Combat Bots Only 3 | . . 1 3 2 Max Kills in Single Turn 3 | . . 1 3 2 Gunslinging . | . . . . . Exploded 3 | . . 1 3 2 Melee . | . . . . . Uniques/NPCs Destroyed . | . . . . . Combat | -11 -10 -10 -9 -8 -------- Run | Scr Mat Min Mat Mat Damage Taken 1274 | . 154 107 202 811 Core 804 | . 78 55 118 553 Absorbed by Shields . | . . . . . Core Remaining (%) 72 | 100 . 46 70 . Volleys Fired 8 | . . 3 2 3 Largest 1 | . . 1 1 1 Hottest 36 | . . 36 36 36 Shots Fired 8 | . . 3 2 3 Gun . | . . . . . Cannon . | . . . . . Launcher 8 | . . 3 2 3 Special . | . . . . . Kinetic . | . . . . . Thermal . | . . . . . Explosive 8 | . . 3 2 3 Electromagnetic . | . . . . . Robot Hit Streak 4 | . . 2 1 4 Robot Miss Streak 1 | . . 1 1 . Penetration Max . | . . . . . Secondary Targets . | . . . . . Shots Hit Robots 17 | . . 2 1 14 Core Hits 18 | . . 1 4 13 Critical Hits . | . . . . . Critical Kills . | . . . . . Critical Parts Destroyed . | . . . . . Melee Attacks 16 | . . . . 16 Impact 16 | . . . . 16 Slashing . | . . . . . Piercing . | . . . . . Sneak Attacks 1 | . . . . 1 Combat Hostiles . | . . . . . Follow-up Attacks . | . . . . . Damage Inflicted 1255 | . . 164 190 901 Guns . | . . . . . Cannons . | . . . . . Explosions 897 | . . 163 190 544 Melee 330 | . . . . 330 Ramming 28 | . . 1 . 27 Kinetic . | . . . . . Thermal . | . . . . . Explosive 897 | . . 163 190 544 Electromagnetic . | . . . . . Impact 330 | . . . . 330 Slashing . | . . . . . Piercing . | . . . . . Highest Corruption 7 | . . . . 7 Average Corruption 2 | . . . . 2 Corruption Purged . | . . . . . Effects 1 | . . . . 1 Heat Flow Errors 1 | . . . . 1 Overload Shots . | . . . . . Overflow Damage 61 | . . . . 61 Projectiles . | . . . . . Explosions 6 | . . . . 6 Melee 55 | . . . . 55 Knockbacks 3 | . . . . 3 Impact 3 | . . . . 3 Kinetic . | . . . . . Secondary . | . . . . . Self-Inflicted Damage 13 | . . . . 13 Shots . | . . . . . Rammed 8 | . . 1 . 7 Targets Rammed 8 | . . 1 . 7 Kicked . | . . . . . Crushed . | . . . . . Highest Temperature 185 | . . 2 . 185 Average Temperature 125 | . . 2 . 134 Received Heat Transfer 534 | . 45 48 63 378 Siege Activations . | . . . . . Robots Corrupted . | . . . . . Combat Hostiles . | . . . . . Parts Fried 3 | . . . . 3 Impact Corruptions 3 | . . . . 3 Robots Melted . | . . . . . Combat Hostiles . | . . . . . Parts Melted . | . . . . . Heat Transferred . | . . . . . Parts Sabotaged . | . . . . . Parts Stolen . | . . . . . Parts Stripped . | . . . . . Power Chain Reactions . | . . . . . Missiles Intercepted . | . . . . . Alert | -11 -10 -10 -9 -8 ------- Run | Scr Mat Min Mat Mat Peak Influence 196 | . 30 63 138 196 Average Influence 68 | . 8 37 72 109 Maximum Alert Level . | . . . . . Low Security (%) 100 | 100 100 100 100 100 Level 1 . | . . . . . Level 2 . | . . . . . Level 3 . | . . . . . Level 4 . | . . . . . Level 5 . | . . . . . High Security . | . . . . . Max Security . | . . . . . Squads Dispatched 5 | . 2 . 2 1 Investigation 1 | . . . . 1 Extermination . | . . . . . Reinforcement 4 | . 2 . 2 . Assault . | . . . . . Garrison . | . . . . . Intercept . | . . . . . Construction Impeded . | . . . . . Haulers Reinforced . | . . . . . Stealth | -11 -10 -10 -9 -8 --------- Run | Scr Mat Min Mat Mat Distress Signals 3 | . . . 2 1 Communications Jammed . | . . . . . Distress Signals . | . . . . . Times Spotted 46 | . 10 8 12 16 Peak Tracking Total 16 | . 9 16 9 13 Tactical Retreats 3 | . . 1 . 2 Traps | -11 -10 -10 -9 -8 ------- Run | Scr Mat Min Mat Mat Traps Triggered 1 | . . . . 1 Indirectly . | . . . . . Trap Hack Attempts . | . . . . . Triggered . | . . . . . Disarmed . | . . . . . Reprogrammed . | . . . . . Reused . | . . . . . Traps Extracted . | . . . . . Installed . | . . . . . Triggered . | . . . . . Machines | -11 -10 -10 -9 -8 ---------- Run | Scr Mat Min Mat Mat Machines Disabled . | . . . . . Max in Single Turn . | . . . . . Machines Sabotaged . | . . . . . Garrisons Compromised . | . . . . . Overloaded Fab Kills . | . . . . . Fab Network Shutdowns . | . . . . . Hacking | -11 -10 -10 -9 -8 --------- Run | Scr Mat Min Mat Mat Machines Accessed 6 | . . 1 2 3 Terminals 5 | . . . 2 3 Fabricators . | . . . . . Repair Stations . | . . . . . Recycling Units . | . . . . . Scanalyzers . | . . . . . Garrison Access . | . . . . . Total Hacks 13 | . . 1 5 7 Successful 6 | . . 1 2 3 Failed 7 | . . . 3 4 Catastrophic 1 | . . . . 1 Database Lockouts . | . . . . . Manual 7 | . . . 5 2 Terminals 12 | . . . 5 7 Fabricators . | . . . . . Repair Stations . | . . . . . Recycling Units . | . . . . . Scanalyzers . | . . . . . Garrison Access . | . . . . . Terminal Hacks 3 | . . 1 . 2 Record 1 | . . . . 1 Open Door 1 | . . 1 . . Branch Access Points 1 | . . . . 1 Fabricator Hacks . | . . . . . Repair Station Hacks . | . . . . . Recycling Unit Hacks . | . . . . . Scanalyzer . | . . . . . Garrison Access Hacks . | . . . . . Unauthorized Hacks 3 | . . . 2 1 Terminals 3 | . . . 2 1 Track 3 | . . . 2 1 Fabricators . | . . . . . Repair Stations . | . . . . . Recycling Units . | . . . . . Scanalyzers . | . . . . . Garrison Access . | . . . . . Data Cores Recovered . | . . . . . Used . | . . . . . Hacking Detections 5 | . . . 2 3 Full Trace Events 2 | . . . . 2 Feedback Events . | . . . . . Feedback Blocked . | . . . . . Robot Schematics Acquired . | . . . . . Robots Built . | . . . . . Matter . | . . . . . Time . | . . . . . Total Robot Build Rating . | . . . . . Part Schematics Acquired . | . . . . . Parts Built . | . . . . . Matter . | . . . . . Time . | . . . . . Total Part Build Rating . | . . . . . Parts Repaired . | . . . . . Time . | . . . . . Parts Recycled . | . . . . . Recycled Matter . | . . . . . Retrieved Matter . | . . . . . Retrieved Components . | . . . . . Parts Scanalyzed . | . . . . . Part Schematics Acquired . | . . . . . Parts Damaged . | . . . . . Bothacking | -11 -10 -10 -9 -8 ------------ Run | Scr Mat Min Mat Mat Used RIF Installer . | . . . . . Robots Hacked . | . . . . . Non-combat . | . . . . . Combat . | . . . . . Robot Hacks Applied . | . . . . . Relay Couplers Released . | . . . . . Robots Rewired . | . . . . . Allies Hacked . | . . . . . Hacks Repelled . | . . . . . Allies | -11 -10 -10 -9 -8 -------- Run | Scr Mat Min Mat Mat Total Allies 1 | . . 1 . . Largest Group 1 | . . . 1 . Highest-Rated Group 31 | . . . 31 . Highest-Rated Ally 31 | . . . 31 . Total Orders . | . . . . . Ally Attacks 7 | . . . 7 . Total Damage 124 | . . . 124 . Kills . | . . . . . Allies Corrupted . | . . . . . Allies Melted . | . . . . . Intel | -11 -10 -10 -9 -8 ------- Run | Scr Mat Min Mat Mat Robot Analysis Total . | . . . . . Derelict Logs Recovered 1 | . . 1 . . Drone Launches . | . . . . . Drone Recoveries . | . . . . . Exploration | -11 -10 -10 -9 -8 ------------- Run | Scr Mat Min Mat Mat Turns Passed 514 | 10 81 101 128 194 Spaces Moved 713 | 20 125 156 210 202 Core 683 | 20 95 156 210 202 Treads . | . . . . . Legs . | . . . . . Wheels . | . . . . . Hover 30 | . 30 . . . Flight . | . . . . . Fastest Speed 50 | 50 50 50 50 50 Average Speed 51 | 50 52 53 50 51 Slowest Speed 150 | 50 60 150 50 100 Overloaded Moves . | . . . . . Propulsion Burnouts . | . . . . . Robots Hopped . | . . . . . Cave-ins Triggered . | . . . . . Exploration Rate (%) 31 | 4 35 54 34 28 Regions Visited 4 Branch Regions 1 Pre-discovered Areas . | . . . . . Known Exits Taken 3 | . 1 1 1 . Unknown Exits Taken 1 | 1 . . . . Scrap Searched 1 | . . 1 . . Spaces Dug 4 | . . . . 4 Terrain Destroyed 55 | . . 26 10 19 Melee 4 | . . . . 4 Projectile . | . . . . . AOE 51 | . . 26 10 15 Actions | -11 -10 -10 -9 -8 --------- Run | Scr Mat Min Mat Mat Total 810 | 19 137 169 230 255 Wait 37 | . 5 3 12 17 Move 709 | 19 124 155 209 202 Hop . | . . . . . Pick Up 6 | . 4 1 . 1 Fast Attach 13 | . 4 2 3 4 Attach 6 | . . 2 1 3 Detach 4 | . . 1 1 2 Swap . | . . . . . Drop 3 | . . 1 2 . Fire 8 | . . 3 2 3 Melee 16 | . . . . 16 Ram 8 | . . 1 . 7 Kick . | . . . . . Crush . | . . . . . Escape Stasis . | . . . . . Rewire . | . . . . . Trap . | . . . . . Miscellaneous . | . . . . . Route ------- -11/Scrapyard -10/Materials -10/Mines -9/Materials (discovered 2 exits: *Mat / *Min) -8/Materials History --------- Turn | Location | Event 2 | -11/Scrapyard | Met Revision 17 3 | -11/Scrapyard | Discovered new exit (range 16) 11 | -11/Scrapyard | Entered Materials 89 | -10/Materials | Discovered new exit (range 7) 91 | -10/Materials | Identified exit to Mines 92 | -10/Materials | Entered Mines 100 | -10/Mines | Identified exit to Materials 111 | -10/Mines | Core integrity fell below 50% 119 | -10/Mines | Met a Derelict who couldn't figure out how to use a Trap Extractor 141 | -10/Mines | Assembled infested the area 190 | -10/Mines | Received a Mining Laser from a helpful Derelict 193 | -10/Mines | Entered Materials 193 | -9/Materials | Accompanied by 1 ally 193 | -9/Materials | Evolved 2 slots: Utility x2 254 | -9/Materials | Discovered new exit (range 17) 262 | -9/Materials | Identified exit to Mines 300 | -9/Materials | Build established: Mutant 317 | -9/Materials | Discovered new exit (range 5) 321 | -9/Materials | Identified exit to Materials 321 | -9/Materials | Entered another Materials area 321 | -8/Materials | Evolved 2 slots: Utility x2 427 | -8/Materials | Core integrity fell below 50% 457 | -8/Materials | Core integrity fell below 20% 488 | -8/Materials | Lost 5 parts (1p1n1u2w) 515 | -8/Materials | Destroyed by Y-45 Defender with Beam Rifle Last Messages --------------- 00457_ U-05 Engineer lays Concrete. 00457_ G-50 Soldier destroyed. 00457_ G-47 Trooper destroyed. 00458_ U-05 Engineer lays Concrete. 00460_ K-01 Serf collects debris. 00461_ U-05 Engineer lays Concrete. 00462_ R-06 Scavenger collects Wheel. 00464_ U-05 Engineer lays Concrete. 00464_ O-16 Technician: "IFF HANDSHAKE FAILED. SECURING TERMINAL." 00465_ W-25 Informer sends out distress signal. 00471_ Connecting with Terminal... 00501_ Slammed into A-02 Transporter. 00501_ Signal Interpreter permanently disabled. 00501_ Destabilizing: Short circuit. 00504_ Slammed into A-02 Transporter. 00510_ Slammed into K-01 Serf. 00510_ Destabilizing: System corrupted (+1). 00514_ Slammed into W-25 Informer. 00514_ Melee Analysis Suite destroyed. 00514_ System corrupted by crushing effect (+4). Map ----- +----------------------------------------------------+ | ?????????????????????????????????????????????????? | | ?????????????????????????????????????????????????? | | ?????????????????????????????????????????????????? | | ?????????????????????????????????????????????????? | | ?????????????????????????????????????????????????? | | ?????????????????????????????????????????????????? | | ?????????????????????????????????????????????????? | | ?????????????????????????????????????????????????? | | ?????????????????????????????????????????????????? | | ?????????????????????????????????????????????????? | | ?????????????????????????????????????????????????? | | ?????????????????????????????????????????????????? | | ?????????????????????????????????????????????????? | | ?????????????????????????????????????????????????? | | ?????????????????????????????????????????????????? | | ?????????????????????????????????????????????????? | | ?????????????????????????????????????????????????? | | ?????????????????????????????????????????????????? | | ?????????????????????????????????????????????????? | | ?????????????????????????????????????????????????? | | ?????????????????????????????????????????????????? | | ?????????????????????????????????????????????????? | | ?????????????????????????????????????????????????? | | ?????????????????????????????????????????????????? | | ???????????????????# a########################### | | ???????????????????# Y@w gg | | ???????????????????# ########################"## | | ????????????????????????????????????????????## ##? | | ???????????????????????????????????????????## ##?? | | ???????????????????????????????????#########"##??? | | ???????????????????????????????????# = = ] #???? | | ???????????????????????????????????# #???? | | ???????????????????????????????????# #???? | | ???????????????????????????????????# """ """ #???? | | ???????????????????????????????????# """ """ #???? | | ???????????????????????????????????# """ """ #???? | | ???????????????????????????????????# #???? | | ???????????????????????????????????# ! #???? | | ???????????????????????????????????#####/#####???? | | ?????????????????????????????????????# ####### | | ?????????????????????????????????????# | | ?????????????????????????????????????# T | | ?????????????????????????????????????# | | ?????????????????????????????????????# ###+## | | ?????????????????????????????????????#######????# | | ????????????????????????????????????????????????# | | ????????????????????????????????????????????????# | | ????????????????????????????????????????????????# | | ????????????????????????????????????????????????# | | ????????????????????????????????????????????????# | +----------------------------------------------------+ Best States ------------- Heat Dissipation 31 Energy Generation 14 Energy Capacity 160 Matter Stores 300 Matter Capacity 300 Sight Range 20 Terrain Scan Density 10 Additional Mass Support 9 Core Shielding 20 Evasion (%) 53 Melee Accuracy 5 Item Schematics ----------------- None Robot Schematics ------------------ None Fabricated ------------ Nothing Alien Tech Used ----------------- None Achievements -------------- I Survived The Infestation Challenges ------------ None Game ------ Seed SurgeSensorThrusters Manual? 0 Play Time 00:13:09 Cumulative 21.2 hours Start 2020.08.29 @ 20:43:21 End 2020.08.29 @ 20:55:04 Sessions 1 Manual Loads 0 Difficulty Rogue Special Mode None Game No. 10 Rogue 10 Adventurer 0 Explorer 0 Win Type - Total 1 Types 0/0/1/0/0/0/0 Lore% 16 Gallery% 40 Achievement% 30 Wizard Run 0 Options --------- ASCII 0 Keyboard 0 Movement Mouse Keybinds 0 Fullscreen 2 Font 18/SmallcapsGlow Map View 76x50 Tactical HUD 1 Map Filters NONE Filters NONE Steam 0 RUN: 62e590d1-1c5f-4355-a9f4-5eaa4ba507c2